bitfinex/quotes_BTCUSD_20241201
["timestamp","ask_amount","ask_price","bid_price","bid_amount"]
[1733066043086,0.00103785,97359.0,97358.0,0.001864]
[1733066048772,0.00285513,97359.0,97358.0,0.001864]
[1733066049946,0.00103785,97359.0,97358.0,0.001864]
[1733066059556,0.00285513,97359.0,97358.0,0.001864]
[1733066060746,0.00103785,97359.0,97358.0,0.001864]
[1733066061163,0.00285513,97359.0,97358.0,0.001864]
[1733066063590,0.00103785,97359.0,97358.0,0.001864]
[1733066074068,0.00103785,97359.0,97358.0,0.079464]
[1733066076042,0.00103785,97359.0,97358.0,0.001864]
[1733066077560,0.00103785,97359.0,97358.0,0.00135737]
[1733066082186,0.04422384,97359.0,97358.0,0.00135737]
[1733066082398,0.15230034,97359.0,97358.0,0.00135737]
[1733066082608,0.17530034,97359.0,97358.0,0.00135737]
[1733066083702,0.15230034,97359.0,97358.0,0.00135737]
[1733066083922,0.15230034,97359.0,97358.0,0.00035737]
[1733066084343,0.15430034,97359.0,97358.0,0.00035737]
[1733066085049,0.20273095,97359.0,97358.0,0.00035737]
[1733066085700,0.15430034,97359.0,97358.0,0.00035737]
[1733066088394,0.10770034,97359.0,97358.0,0.00035737]
[1733066097825,0.22960034,97359.0,97358.0,0.00035737]
[1733066098044,0.22778306,97359.0,97358.0,0.00035737]
[1733066098921,0.12493785,97359.0,97358.0,0.00035737]
[1733066099177,0.12675513,97359.0,97358.0,0.00035737]
[1733066099397,0.33771933,97359.0,97358.0,0.00035737]
[1733066099605,0.33762945,97359.0,97358.0,0.00035737]
[1733066100682,0.33562945,97359.0,97358.0,0.00035737]
[1733066101122,0.34262945,97359.0,97358.0,0.00135737]
[1733066102622,0.36339861,97359.0,97358.0,0.00135737]
[1733066105678,0.19141046,97359.0,97358.0,0.00135737]
[1733066105906,0.19322774,97359.0,97358.0,0.00135737]
[1733066130912,0.14742774,97359.0,97358.0,0.00135737]
[1733066145355,0.42162774,97359.0,97358.0,0.00135737]
[1733066145572,0.41981046,97359.0,97358.0,0.00135737]
[1733066145790,0.44950383,97359.0,97358.0,0.00135737]
[1733066146006,0.52264192,97359.0,97358.0,3.7e-07]
[1733066146440,0.01103785,97351.0,97350.0,0.0008638]
[1733066146683,0.38954234,97351.0,97350.0,0.0008638]
[1733066146925,0.38772506,97351.0,97350.0,0.0008638]
[1733066147659,0.33232506,97351.0,97350.0,0.0008638]
[1733066147866,0.33232506,97351.0,97350.0,0.00095547]
[1733066148087,0.34232506,97351.0,97350.0,0.00095547]
[1733066149169,0.41971417,97351.0,97350.0,0.00095547]
[1733066149598,0.42471417,97351.0,97350.0,0.00095547]
[1733066150029,0.43271417,97351.0,97350.0,0.00195547]
[1733066150261,0.43271417,97351.0,97350.0,0.00095547]
[1733066150262,0.42471417,97351.0,97350.0,0.00095547]
[1733066150472,0.43582835,97351.0,97350.0,0.00095547]
[1733066150685,0.44382835,97351.0,97350.0,0.00195547]
[1733066150896,0.43582835,97351.0,97350.0,0.00095547]
[1733066151547,0.43082835,97351.0,97350.0,0.00095547]
[1733066151969,0.43482835,97351.0,97350.0,0.00095547]
[1733066152631,0.43082835,97351.0,97350.0,0.00095547]
[1733066152919,0.43482835,97351.0,97350.0,0.00095547]
[1733066153144,0.48922835,97351.0,97350.0,0.00195547]
[1733066154689,0.48922835,97351.0,97341.0,0.00093523]
[1733066154690,0.23949885,97342.0,97341.0,0.00093523]
[1733066154937,0.00103785,97318.0,97315.0,0.0497]
[1733066155146,0.30939406,97318.0,97315.0,0.0497]
[1733066155366,0.30939406,97318.0,97316.0,0.0774636]
[1733066156783,0.31139406,97318.0,97316.0,0.0774636]
[1733066157214,0.31139406,97318.0,97316.0,0.0008636]
[1733066160545,0.31239406,97318.0,97316.0,0.0008636]
[1733066163019,0.33539406,97318.0,97316.0,0.0008636]
[1733066164542,0.41103387,97318.0,97316.0,0.0008636]
[1733066166768,0.33539406,97318.0,97316.0,0.0008636]
[1733066167870,0.31239406,97318.0,97316.0,0.0008636]
[1733066168092,0.33539406,97318.0,97316.0,0.0008636]
[1733066171355,0.34539406,97318.0,97316.0,0.0008636]
[1733066172267,0.34439406,97318.0,97316.0,0.0008636]
[1733066172723,0.34639406,97318.0,97316.0,0.0008636]
[1733066173162,0.42700387,97318.0,97316.0,0.0008636]
[1733066173609,0.47570387,97318.0,97316.0,0.0008636]
[1733066174095,0.70350387,97318.0,97317.0,6e-07]
[1733066174308,0.18403785,97317.0,97316.0,2e-07]
[1733066174504,0.4373318,97317.0,97316.0,6.4e-07]
[1733066174747,0.43551452,97317.0,97316.0,6.4e-07]
[1733066176599,0.33268306,97317.0,97316.0,6.4e-07]
[1733066177513,0.34168306,97317.0,97316.0,6.4e-07]
[1733066179142,0.34768306,97317.0,97316.0,0.00100064]
[1733066179375,0.34768306,97317.0,97316.0,6.4e-07]
[1733066179843,0.42808306,97317.0,97316.0,6.4e-07]
[1733066180057,0.53091452,97317.0,97316.0,6.4e-07]
[1733066180279,0.53091452,97317.0,97307.0,0.0008637]
[1733066180280,0.01103785,97308.0,97307.0,3.4e-07]
[1733066180547,0.62043234,97308.0,97307.0,3.4e-07]
[1733066180770,0.61861506,97308.0,97307.0,3.4e-07]
[1733066181249,0.07983785,97299.0,97298.0,1e-08]
[1733066181469,0.18450034,97299.0,97298.0,1e-08]
[1733066181688,0.24140273,97299.0,97298.0,1e-08]
[1733066181903,0.38958545,97299.0,97298.0,1e-08]
[1733066183011,0.39458545,97299.0,97298.0,0.00100001]
[1733066183281,0.33768306,97299.0,97298.0,0.00100001]
[1733066183504,0.29188306,97299.0,97298.0,0.00100001]
[1733066184433,0.30088306,97299.0,97298.0,0.00100001]
[1733066186744,0.32106385,97299.0,97298.0,0.00100001]
[1733066187940,0.31106385,97299.0,97298.0,0.00100001]
[1733066188920,0.32211345,97299.0,97298.0,0.00100001]
[1733066189807,0.3210756,97299.0,97298.0,0.00100001]
[1733066190034,0.32211345,97299.0,97298.0,0.00100001]
[1733066190285,0.39533071,97299.0,97298.0,0.00100001]
[1733066190495,0.32211345,97299.0,97298.0,0.00100001]
[1733066192174,0.33211345,97299.0,97298.0,0.00100001]
[1733066193989,0.23960385,97292.0,97291.0,8e-07]
[1733066194199,0.34244906,97292.0,97291.0,8e-07]
[1733066195301,0.36760962,97292.0,97291.0,8e-07]
[1733066195955,0.37460962,97292.0,97291.0,8e-07]
[1733066196189,0.37860962,97292.0,97291.0,8e-07]
[1733066196416,0.35344906,97292.0,97291.0,8e-07]
[1733066197534,0.50344906,97292.0,97291.0,8e-07]
[1733066198669,0.63604906,97292.0,97291.0,8e-07]
[1733066199169,0.62504906,97292.0,97291.0,8e-07]
[1733066199387,0.73588052,97292.0,97291.0,8e-07]
[1733066199611,0.73988052,97292.0,97291.0,8e-07]
[1733066199836,0.73188052,97292.0,97291.0,8e-07]
[1733066200035,0.74088052,97292.0,97291.0,8e-07]
[1733066200291,0.73688052,97292.0,97291.0,8e-07]
[1733066200722,0.74388052,97292.0,97291.0,8e-07]
[1733066202127,0.16663785,97272.0,97271.0,6e-07]
[1733066202361,0.16663785,97272.0,97260.0,0.0008637]
[1733066202362,0.23966985,97261.0,97260.0,0.0008637]
[1733066202587,0.34251506,97261.0,97260.0,0.0008637]
[1733066203748,0.34851506,97261.0,97260.0,0.00145768]
[1733066204212,0.31551506,97261.0,97260.0,0.08445768]
[1733066204870,0.31851506,97261.0,97260.0,0.08445768]
[1733066205088,0.31851506,97261.0,97260.0,0.00145768]
[1733066206245,0.42153115,97261.0,97260.0,0.00145768]
[1733066206491,0.42953115,97261.0,97260.0,0.00145768]
[1733066206987,0.42653115,97261.0,97260.0,0.00145768]
[1733066207223,0.35051506,97261.0,97260.0,0.00145768]
[1733066207459,0.35351506,97261.0,97260.0,0.00145768]
[1733066207893,0.34168765,97261.0,97260.0,0.00145768]
[1733066208540,0.34168765,97261.0,97260.0,0.12404268]
[1733066209454,0.419021,97261.0,97260.0,0.12404268]
[1733066210155,0.34168765,97261.0,97260.0,0.12404268]
[1733066214168,0.34168765,97261.0,97260.0,0.12404268]
[1733066214867,0.33168765,97261.0,97260.0,0.12404268]
[1733066215111,0.33168765,97261.0,97260.0,0.20014268]
[1733066217298,0.32051506,97261.0,97260.0,0.24784268]
[1733066218464,0.31751506,97261.0,97260.0,0.24784268]
[1733066218943,0.31851506,97261.0,97260.0,0.24784268]
[1733066220666,0.31051506,97261.0,97260.0,0.24784268]
[1733066220893,0.31451506,97261.0,97260.0,0.24784268]
[1733066224527,0.00603785,97261.0,97260.0,0.24784268]
[1733066234142,0.00785513,97261.0,97260.0,0.24784268]
[1733066236859,0.00603785,97261.0,97260.0,0.24784268]
[1733066250102,0.005,97261.0,97260.0,0.24784268]
[1733066250332,0.005,97261.0,97260.0,0.25864929]
[1733066251229,0.004,97261.0,97260.0,0.25864929]
[1733066251694,0.005,97261.0,97260.0,0.25864929]
[1733066251912,0.001729,97264.0,97263.0,0.01]
[1733066252131,0.001729,97264.0,97263.0,0.13691944]
[1733066253750,0.001729,97264.0,97263.0,0.13891944]
[1733066253751,0.002729,97264.0,97263.0,0.13891944]
[1733066255431,0.003729,97264.0,97263.0,0.24376465]
[1733066255555,0.2072804,97299.0,97263.0,0.24376465]
[1733066255556,0.2072804,97299.0,97281.0,0.01]
[1733066255814,0.00103785,97290.0,97283.0,0.1298]
[1733066256030,0.00103785,97290.0,97284.0,0.0812]
[1733066256457,0.00103785,97297.0,97286.0,0.1298]
[1733066256689,0.00103785,97297.0,97289.0,0.0812]
[1733066257352,0.0097284,97299.0,97289.0,0.0812]
[1733066257353,0.00103785,97292.0,97289.0,0.0812]
[1733066259523,0.00103785,97292.0,97289.0,0.0832]
[1733066261346,0.00103785,97292.0,97289.0,0.0862]
[1733066262386,0.00103785,97296.0,97290.0,0.20557]
[1733066262611,0.00103785,97296.0,97291.0,0.1298]
[1733066262852,0.0017284,97299.0,97291.0,0.1298]
[1733066262853,0.00103785,97293.0,97291.0,0.1298]
[1733066263786,0.00103785,97293.0,97291.0,0.12997812]
[1733066264450,0.0017292,97292.0,97291.0,0.13097812]
[1733066264888,0.0017292,97292.0,97291.0,0.12997812]
[1733066265160,0.0017292,97292.0,97291.0,0.13297812]
[1733066265387,0.0017292,97292.0,97291.0,0.12997812]
[1733066266266,0.0017292,97292.0,97291.0,0.13197812]
[1733066266751,0.0017292,97292.0,97291.0,0.12997812]
[1733066266973,0.0017292,97292.0,97291.0,0.13297812]
[1733066267212,0.0017292,97292.0,97291.0,0.13697812]
[1733066267937,0.0017292,97292.0,97291.0,0.08837812]
[1733066268159,0.00276705,97292.0,97291.0,0.08837812]
[1733066280946,0.20833305,97292.0,97291.0,0.00717812]
[1733066281843,0.20833305,97292.0,97291.0,0.00417812]
[1733066282081,0.20833305,97292.0,97291.0,0.00017812]
[1733066282528,0.20833305,97292.0,97291.0,0.00417812]
[1733066282946,0.20833305,97292.0,97291.0,0.00017812]
[1733066283372,0.20833305,97292.0,97291.0,0.00617812]
[1733066283624,0.35677826,97292.0,97291.0,0.00617812]
[1733066283837,0.35677826,97292.0,97291.0,0.00017812]
[1733066284295,0.35677826,97292.0,97291.0,0.00217812]
[1733066284762,0.35677826,97292.0,97291.0,0.00017812]
[1733066285236,0.35777826,97292.0,97291.0,0.00017812]
[1733066286138,0.35777826,97292.0,97291.0,0.00217812]
[1733066286322,0.35777826,97292.0,97291.0,0.00017812]
[1733066286755,0.36077826,97292.0,97291.0,0.00017812]
[1733066287634,0.31517826,97292.0,97291.0,0.00017812]
[1733066288529,0.21233305,97292.0,97291.0,0.00017812]
[1733066288987,0.20833305,97292.0,97291.0,0.00017812]
[1733066289418,0.21233305,97292.0,97291.0,0.00017812]
[1733066290069,0.20933305,97292.0,97291.0,0.00017812]
[1733066290495,0.21033305,97292.0,97291.0,0.00017812]
[1733066290928,0.20933305,97292.0,97291.0,0.00017812]
[1733066291581,0.20833305,97292.0,97291.0,0.00017812]
[1733066292023,0.20833305,97292.0,97291.0,0.00117812]
[1733066292514,0.20833305,97292.0,97291.0,0.00017812]
[1733066292737,0.20833305,97292.0,97291.0,0.00117812]
[1733066292962,0.20833305,97292.0,97291.0,0.00217812]
[1733066293178,0.20833305,97292.0,97291.0,0.00117812]
[1733066296278,0.00276705,97292.0,97291.0,0.00117812]
[1733066303121,0.00276705,97292.0,97291.0,0.00017812]
[1733066303789,0.00476705,97292.0,97291.0,0.00017812]
[1733066304207,0.00276705,97292.0,97291.0,0.00017812]
[1733066304427,0.00276705,97292.0,97291.0,0.00117812]
[1733066307335,0.00276705,97292.0,97291.0,0.00017812]
[1733066307804,0.00276705,97292.0,97291.0,0.00117812]
[1733066308953,0.00458433,97292.0,97291.0,0.00117812]
[1733066309209,0.00558433,97292.0,97291.0,0.00117812]
[1733066312241,0.10842954,97292.0,97291.0,0.00117812]
[1733066314610,0.00558433,97292.0,97291.0,0.00117812]
[1733066314833,0.00376705,97292.0,97291.0,0.00117812]
[1733066315051,0.00376705,97292.0,97291.0,0.00017812]
[1733066315290,0.00276705,97292.0,97291.0,0.00017812]
[1733066315510,0.00276705,97292.0,97291.0,0.00117812]
[1733066324620,0.00458433,97292.0,97291.0,0.00117812]
[1733066325318,0.10742954,97292.0,97291.0,0.00117812]
[1733066326331,0.10742954,97292.0,97291.0,0.00017812]
[1733066326819,0.10942954,97292.0,97291.0,0.00017812]
[1733066330982,0.12058027,97292.0,97291.0,0.00017812]
[1733066338196,0.11876299,97292.0,97291.0,0.00017812]
[1733066339600,0.12058027,97292.0,97291.0,0.00017812]
[1733066369437,0.13058027,97292.0,97291.0,0.00017812]
[1733066369692,0.25228027,97292.0,97291.0,0.00017812]
[1733066369905,0.25046299,97292.0,97291.0,0.00017812]
[1733066370545,0.24846299,97292.0,97291.0,0.00017812]
[1733066371014,0.26146299,97292.0,97291.0,0.00117812]
[1733066371466,0.32889443,97292.0,97291.0,0.00117812]
[1733066371694,0.47889443,97292.0,97291.0,0.00117812]
[1733066375407,0.41146299,97292.0,97291.0,0.00117812]
[1733066379400,0.43446299,97292.0,97291.0,0.00117812]
[1733066385389,0.43446299,97292.0,97291.0,1e-08]
[1733066390346,0.21663785,97276.0,97275.0,0.0007209]
[1733066390583,0.39178306,97276.0,97275.0,0.0007209]
[1733066391473,0.4258226,97276.0,97275.0,0.0007209]
[1733066391920,0.4298226,97276.0,97275.0,0.0007209]
[1733066392144,0.4308226,97276.0,97275.0,0.0007209]
[1733066392613,0.5808226,97276.0,97275.0,9e-07]
[1733066392851,0.5915617,97276.0,97275.0,9e-07]
[1733066393788,0.5865617,97276.0,97275.0,9e-07]
[1733066394003,0.5925617,97276.0,97275.0,9e-07]
[1733066394216,0.5955617,97276.0,97275.0,9e-07]
[1733066394445,0.5895617,97276.0,97275.0,9e-07]
[1733066394690,0.5865617,97276.0,97275.0,9e-07]
[1733066394908,0.5955617,97276.0,97275.0,9e-07]
[1733066395135,0.62069659,97276.0,97275.0,9e-07]
[1733066400600,0.26476085,97265.0,97260.0,0.1234487]
[1733066400846,0.43520545,97265.0,97260.0,0.1234487]
[1733066401546,0.36760606,97265.0,97260.0,0.1234487]
[1733066402023,0.37360606,97265.0,97260.0,0.1234487]
[1733066403175,0.32550606,97265.0,97260.0,0.1234487]
[1733066404977,0.33662168,97265.0,97260.0,0.1234487]
[1733066405473,0.33462168,97265.0,97260.0,0.1234487]
[1733066405708,0.41601715,97265.0,97260.0,0.1234487]
[1733066405943,0.41201715,97265.0,97260.0,0.1234487]
[1733066406163,0.41801715,97265.0,97260.0,0.1234487]
[1733066407602,0.56801715,97265.0,97260.0,0.1234487]
[1733066411573,0.59101715,97265.0,97264.0,5e-07]
[1733066412508,0.51162168,97265.0,97264.0,5e-07]
[1733066413413,0.01103785,97261.0,97260.0,0.1234487]
[1733066413633,0.11570034,97261.0,97260.0,0.1234487]
[1733066414047,0.26570034,97261.0,97260.0,0.1234487]
[1733066414269,0.26388306,97261.0,97260.0,0.1234487]
[1733066414493,0.35387003,97261.0,97260.0,0.1234487]
[1733066414712,0.35387003,97261.0,97260.0,0.12404268]
[1733066415156,0.26388306,97261.0,97260.0,0.12404268]
[1733066415870,0.26488306,97261.0,97260.0,0.12404268]
[1733066416959,0.26888306,97261.0,97260.0,0.12404268]
[1733066420145,0.26888306,97261.0,97260.0,0.20364268]
[1733066420373,0.26888306,97261.0,97260.0,0.25244268]
[1733066422703,0.11888306,97261.0,97260.0,0.25244268]
[1733066430756,0.11888306,97261.0,97260.0,0.20364268]
[1733066436176,0.12070034,97261.0,97260.0,0.20364268]
[1733066439413,0.11888306,97261.0,97260.0,0.20364268]
[1733066450310,0.10888306,97261.0,97260.0,0.20364268]
[1733066453743,0.00603785,97261.0,97260.0,0.24914268]
[1733066454896,0.00503785,97261.0,97260.0,0.24914268]
[1733066455332,0.00603785,97261.0,97260.0,0.24914268]
[1733066455778,0.00503785,97261.0,97260.0,0.24914268]
[1733066456471,0.00103785,97261.0,97260.0,0.24914268]
[1733066456753,0.00503785,97261.0,97260.0,0.24914268]
[1733066456987,0.00103785,97261.0,97260.0,0.24914268]
[1733066457907,0.00103785,97261.0,97260.0,0.25014268]
[1733066468143,0.001728,97264.0,97260.0,0.25014268]
[1733066468144,0.00103785,97262.0,97261.0,0.13]
[1733066468361,0.001728,97264.0,97261.0,0.13]
[1733066468362,0.00103785,97263.0,97261.0,0.13181956]
[1733066468592,0.00103785,97263.0,97262.0,0.13]
[1733066471515,0.00203785,97263.0,97262.0,0.133]
[1733066471735,0.00303785,97263.0,97262.0,0.135]
[1733066473867,0.00303785,97263.0,97262.0,0.13681953]
[1733066474567,0.002,97263.0,97262.0,0.13681953]
[1733066484273,0.002,97263.0,97262.0,0.15981953]
[1733066485873,0.002,97263.0,97262.0,0.16981953]
[1733066486612,0.002,97263.0,97262.0,0.27266474]
[1733066486841,0.002,97263.0,97262.0,0.27084521]
[1733066487108,0.002,97263.0,97262.0,0.30284286]
[1733066487584,0.001,97263.0,97262.0,0.29984286]
[1733066487828,0.002,97263.0,97262.0,0.30284286]
[1733066488051,0.001,97263.0,97262.0,0.30084286]
[1733066488272,0.001728,97264.0,97263.0,0.215628]
[1733066488488,0.001728,97264.0,97263.0,0.50147086]
[1733066489784,0.002728,97264.0,97263.0,0.50947086]
[1733066492149,0.002728,97264.0,97263.0,0.47747321]
[1733066493300,0.003728,97264.0,97263.0,0.48447321]
[1733066502466,0.003728,97264.0,97263.0,0.51647859]
[1733066504895,0.003728,97264.0,97263.0,0.49347859]
[1733066505580,0.003728,97264.0,97263.0,0.49434229]
[1733066507352,0.003728,97264.0,97263.0,0.51734229]
[1733066529149,0.0017278,97276.0,97275.0,0.331902]
[1733066529373,0.0017278,97276.0,97275.0,0.36390738]
[1733066530754,0.0027278,97276.0,97275.0,0.37090738]
[1733066531208,0.0037278,97276.0,97275.0,0.37990738]
[1733066532832,0.0037278,97276.0,97275.0,0.40290738]
[1733066536156,0.0037278,97276.0,97275.0,0.27660738]
[1733066538109,0.0037278,97276.0,97275.0,0.25360738]
[1733066538565,0.0037278,97276.0,97275.0,0.221602]
[1733066539483,0.0037278,97276.0,97275.0,0.016]
[1733066540186,0.1270278,97276.0,97275.0,0.016]
[1733066540423,0.12806565,97276.0,97275.0,0.016]
[1733066540653,0.23091086,97276.0,97275.0,0.016]
[1733066541362,0.22991086,97276.0,97275.0,0.009]
[1733066541601,0.00103785,97266.0,97262.0,0.0008637]
[1733066542078,0.00103785,97270.0,97264.0,0.20744456]
[1733066542311,0.00103785,97270.0,97264.0,0.41306956]
[1733066542543,0.00103785,97270.0,97264.0,0.00181956]
[1733066542784,0.00103785,97270.0,97265.0,0.205623]
[1733066543018,0.00103785,97270.0,97266.0,0.00181949]
[1733066543245,0.00103785,97272.0,97267.0,0.20743846]
[1733066544477,0.00103785,97272.0,97267.0,0.205619]
[1733066544696,0.0017278,97276.0,97272.0,0.205608]
[1733066544913,0.0017278,97276.0,97274.0,0.205604]
[1733066545132,0.0017278,97276.0,97275.0,0.00181926]
[1733066546675,0.0027278,97276.0,97275.0,0.00981926]
[1733066548103,0.0017278,97276.0,97275.0,0.00181926]
[1733066548341,0.0027278,97276.0,97275.0,0.00781926]
[1733066548570,0.0037278,97276.0,97275.0,0.01581926]
[1733066552538,0.0032646,97276.0,97275.0,0.01581926]
[1733066553915,0.0032646,97276.0,97275.0,0.14166447]
[1733066554140,0.0032646,97276.0,97275.0,0.26250989]
[1733066554374,0.0032646,97276.0,97275.0,0.26069063]
[1733066563167,0.0032646,97276.0,97275.0,0.26155423]
[1733066565427,0.0032646,97276.0,97275.0,0.22950881]
[1733066565678,0.0032646,97276.0,97275.0,0.26154093]
[1733066566129,0.0032646,97276.0,97275.0,0.22950881]
[1733066567428,0.0032646,97276.0,97275.0,0.15070881]
[1733066567709,0.0032646,97276.0,97275.0,0.14252797]
[1733066568410,0.0032646,97276.0,97275.0,0.29252797]
[1733066568661,0.0032646,97276.0,97275.0,0.14070881]
[1733066568882,0.0032646,97276.0,97275.0,0.14252796]
[1733066569095,0.0032646,97276.0,97275.0,0.14070881]
[1733066569314,0.0032646,97276.0,97275.0,0.14252797]
[1733066570707,0.0032646,97276.0,97275.0,0.14070881]
[1733066572941,0.0032646,97276.0,97275.0,0.14128252]
[1733066573707,0.0032646,97276.0,97275.0,0.03843731]
[1733066574347,0.0032646,97276.0,97275.0,0.01543731]
[1733066581118,0.00430245,97276.0,97275.0,0.01543731]
[1733066581334,0.05420245,97276.0,97275.0,0.01543731]
[1733066582437,0.0521646,97276.0,97275.0,0.00743731]
[1733066582649,0.0022646,97276.0,97275.0,0.00743731]
[1733066582876,0.0022646,97276.0,97275.0,0.01043731]
[1733066583086,0.0012646,97276.0,97275.0,0.00143731]
[1733066583513,0.0012646,97276.0,97275.0,0.00643731]
[1733066583737,0.0012646,97276.0,97275.0,0.00343731]
[1733066583941,0.0012646,97276.0,97275.0,0.00143731]
[1733066584130,0.0012646,97276.0,97275.0,0.00543731]
[1733066584382,0.0012646,97276.0,97275.0,0.00443731]
[1733066584800,0.0012646,97276.0,97275.0,0.00143731]
[1733066585646,0.0012646,97276.0,97275.0,0.00543731]
[1733066586520,0.0012646,97276.0,97275.0,0.00143731]
[1733066586744,0.0012646,97276.0,97275.0,0.00443731]
[1733066586965,0.0012646,97276.0,97275.0,0.00943731]
[1733066587171,0.0012646,97276.0,97275.0,0.00643731]
[1733066587387,0.0012646,97276.0,97275.0,0.01125659]
[1733066591743,0.0012646,97276.0,97275.0,0.00943731]
[1733066598012,0.0012646,97276.0,97275.0,0.00643731]
[1733066598220,0.0012646,97276.0,97275.0,0.00343731]
[1733066598442,0.0012646,97276.0,97275.0,0.00643731]
[1733066599482,0.0012646,97276.0,97275.0,0.00443731]
[1733066599888,0.0012646,97276.0,97275.0,0.00143731]
[1733066600099,0.0012646,97276.0,97275.0,0.00443731]
[1733066600299,0.0012646,97276.0,97275.0,0.00843731]
[1733066636134,0.0012646,97276.0,97275.0,0.05343731]
[1733066636349,0.0012646,97276.0,97275.0,0.05525669]
[1733066638011,0.0012646,97276.0,97275.0,0.05343731]
[1733066638445,0.0012646,97276.0,97275.0,0.00843731]
[1733066640303,0.0012646,97276.0,97275.0,0.01025669]
[1733066643039,0.0012646,97276.0,97275.0,0.13765669]
[1733066647195,0.0012646,97276.0,97275.0,0.09265669]
[1733066647417,0.0012646,97276.0,97275.0,0.09083731]
[1733066648817,0.0012646,97276.0,97275.0,0.00843731]
[1733066649520,0.02402525,97284.0,97276.0,0.4112]
[1733066649750,0.205547,97301.0,97275.0,0.00843731]
[1733066649751,0.01837673,97298.0,97275.0,0.00843731]
[1733066649984,0.00181728,97297.0,97275.0,0.00843731]
[1733066650200,0.205565,97293.0,97281.0,0.205589]
[1733066650415,0.14129098,97292.0,97275.0,0.00843731]
[1733066650636,0.00181728,97297.0,97281.0,0.205589]
[1733066650855,0.20557,97291.0,97278.0,0.205596]
[1733066652203,0.20857,97291.0,97278.0,0.205596]
[1733066652662,0.0459,97290.0,97278.0,0.205596]
[1733066654751,0.0459,97290.0,97278.0,0.209596]
[1733066655212,0.0459,97290.0,97278.0,0.205596]
[1733066655419,0.0479,97290.0,97278.0,0.210596]
[1733066655638,0.0479,97290.0,97281.0,0.205588]
[1733066656087,0.0469,97290.0,97281.0,0.205588]
[1733066656964,0.0469,97290.0,97284.0,0.205581]
[1733066657191,0.001,97290.0,97284.0,0.205581]
[1733066657427,0.001,97290.0,97286.0,0.205579]
[1733066657651,0.0495,97297.0,97290.0,0.20557]
[1733066657891,0.01295423,97299.0,97291.0,0.12941915]
[1733066657892,0.0017284,97299.0,97291.0,0.12941915]
[1733066658340,0.0017284,97299.0,97296.0,0.205557]
[1733066658805,0.0017284,97299.0,97294.0,0.00181903]
[1733066659035,0.00179556,97299.0,97294.0,0.00181903]
[1733066659295,0.00179556,97299.0,97295.0,0.20556]
[1733066659784,0.00179556,97299.0,97296.0,0.001]
[1733066660265,0.00179556,97299.0,97295.0,0.20556]
[1733066660703,0.00179556,97299.0,97295.0,0.20656]
[1733066662278,0.00179556,97299.0,97295.0,0.20756]
[1733066671814,0.00179556,97299.0,97295.0,0.41312]
[1733066673454,0.00179556,97299.0,97295.0,0.20756]
[1733066675956,0.00179556,97299.0,97295.0,0.002]
[1733066676402,0.00179556,97299.0,97295.0,0.207559]
[1733066677054,0.00179556,97299.0,97295.0,0.002]
[1733066685960,0.00179556,97299.0,97296.0,0.205558]
[1733066686169,0.00179556,97299.0,97295.0,0.002]
[1733066686378,0.00179556,97299.0,97296.0,0.205558]
[1733066687005,0.00179556,97299.0,97295.0,0.002]
[1733066687444,0.205543,97304.0,97295.0,0.002]
[1733066687674,0.205543,97304.0,97295.0,6.716e-05]
[1733066687889,0.205543,97304.0,97296.0,0.001]
[1733066688580,0.205543,97304.0,97295.0,0.00106716]
[1733066689050,0.208543,97304.0,97295.0,0.00106716]
[1733066690161,0.2102702,97304.0,97295.0,0.00106716]
[1733066690375,0.2082702,97304.0,97295.0,6.716e-05]
[1733066690595,0.2102702,97304.0,97295.0,6.716e-05]
[1733066691036,0.205543,97303.0,97295.0,6.716e-05]
[1733066693229,0.205543,97303.0,97295.0,0.00106716]
[1733066693879,0.0481,97302.0,97295.0,0.00106716]
[1733066694567,0.0481,97302.0,97295.0,0.00306716]
[1733066694789,0.1259,97296.0,97295.0,0.00306716]
[1733066695067,0.1259,97296.0,97295.0,6.716e-05]
[1733066695068,0.23056249,97296.0,97295.0,6.716e-05]
[1733066695295,0.23056249,97296.0,97295.0,0.00406716]
[1733066695296,0.22874521,97296.0,97295.0,0.00406716]
[1733066695525,0.22874521,97296.0,97295.0,0.00206716]
[1733066695757,0.22874521,97296.0,97295.0,6.716e-05]
[1733066696224,0.22874521,97296.0,97295.0,0.00106716]
[1733066697985,0.22874521,97296.0,97295.0,0.00206716]
[1733066699135,0.23975755,97296.0,97295.0,0.00206716]
[1733066702586,0.23975755,97296.0,97295.0,0.00293066]
[1733066707407,0.23975755,97296.0,97295.0,0.00193066]
[1733066707851,0.23975755,97296.0,97295.0,0.00093066]
[1733066708303,0.24075755,97296.0,97295.0,0.00093066]
[1733066711041,0.16125755,97296.0,97295.0,0.00093066]
[1733066711256,0.16307483,97296.0,97295.0,0.00093066]
[1733066712641,0.11667483,97296.0,97295.0,0.00093066]
[1733066712854,0.11485755,97296.0,97295.0,0.00093066]
[1733066714025,0.11567483,97296.0,97295.0,0.00093066]
[1733066714476,0.205558,97296.0,97295.0,0.00093066]
[1733066714697,0.00181728,97306.0,97295.0,0.00093066]
[1733066714933,0.10284521,97303.0,97295.0,0.00093066]
[1733066715148,0.205546,97302.0,97295.0,0.00093066]
[1733066715369,0.30839121,97302.0,97295.0,0.00093066]
[1733066715583,0.31020849,97302.0,97295.0,0.04713066]
[1733066715830,0.001727,97299.0,97295.0,0.04713066]
[1733066717338,0.001727,97299.0,97295.0,0.00093066]
[1733066718438,0.001727,97299.0,97295.0,0.00393066]
[1733066721377,0.001727,97299.0,97296.0,0.0768]
[1733066722271,0.001727,97299.0,97297.0,0.0462]
[1733066723823,0.001727,97299.0,97297.0,0.0482]
[1733066724913,0.001727,97299.0,97297.0,0.0512]
[1733066734484,0.001727,97299.0,97298.0,0.205554]
[1733066734712,0.001727,97299.0,97298.0,0.28687305]
[1733066734922,0.001727,97299.0,97298.0,0.285054]
[1733066735985,0.001727,97299.0,97298.0,0.288054]
[1733066736889,0.001727,97299.0,97298.0,0.290054]
[1733066746830,0.001727,97299.0,97298.0,0.46129921]
[1733066747045,0.001727,97303.0,97299.0,0.1497]
[1733066747265,0.001727,97303.0,97302.0,0.355245]
[1733066747493,0.001727,97303.0,97302.0,0.49016008]
[1733066749294,0.002727,97303.0,97302.0,0.49916008]
[1733066751470,0.002727,97303.0,97302.0,0.46709021]
[1733066752852,0.002727,97303.0,97302.0,0.44409021]
[1733066754226,0.003727,97303.0,97302.0,0.45109021]
[1733066755328,0.003727,97303.0,97302.0,0.1427]
[1733066766251,0.003727,97303.0,97302.0,0.0973]
[1733066777153,0.003727,97303.0,97302.0,0.14581882]
[1733066777364,0.003727,97303.0,97302.0,0.28166403]
[1733066777580,0.003727,97303.0,97302.0,0.31191728]
[1733066777798,0.0017272,97304.0,97303.0,0.357743]
[1733066778011,0.0017272,97304.0,97303.0,0.49266028]
[1733066779120,0.0027272,97304.0,97303.0,0.49966028]